[Event "106th British-ch Major 2019"]
[Site "Torquay"]
[Date "2019.08.01"]
[Round "6.31"]
[White "Sheikh, Anum"]
[Black "Mueller, Jens"]
[Result "0-1"]
[ECO "B06"]
[WhiteElo "1693"]
[BlackElo "1965"]
[Annotator "NA"]
[PlyCount "82"]
[EventDate "2019.07.27"]
[EventType "swiss"]
[EventCountry "GBR"]
[SourceTitle "playchess.com"]
[Source "ChessBase"]
[SourceQuality "1"]
[TimeControl "40/5400+30:1800+30"]

1. e4 {[%emt 0:00:00]} g6 {[%emt 0:00:00]} 2. d4 {[%emt 0:00:00]} Bg7 {[%emt 0:00:00]} 3. f4 {[%emt 0:00:00]} c5 {[%emt 0:00:01]} 4. Nf3 {[%emt 0:00:14]} cxd4 {[%emt 0:01:13]} 5. Nxd4 {[%emt 0:00:12]} Nc6 {[%emt 0:01:46]} 6. e5 {[%emt 0:01:04]} Nxd4 {[%emt 0:02:58]} 7. Qxd4 {[%emt 0:00:07]} d6 {[%emt 0:01:27]} 8. Bb5+ {[%emt 0:08:47]} Bd7 {[%emt 0:00:41]} 9. Bxd7+ {[%emt 0:00:41]} Qxd7 {[%emt 0:00:08]} 10. O-O {[%emt 0:00:42]} dxe5 {[%emt 0:00:38]} 11. Qxd7+ {[%emt 0:00:32]} Kxd7 {[%emt 0:00:12]} 12. f5 {[%emt 0:12:14]} gxf5 {[%emt 0:08:00]} 13. Rf3 {[%emt 0:01:16]} f4 14. Rxf4 {[%emt 0:00:30]} Ke6 {[%emt 0:00:46]} 15. Rf1 {[%emt 0:00:09]} Nf6 {[%emt 0:03:47]} 16. Nc3 {[%emt 0:00:10]} Rac8 {[%emt 0:03:58]} 17. Be3 {[%emt 0:00:55]} a6 {[%emt 0:00:45]} 18. Rad1 {[%emt 0:01:36]} Rhd8 {[%emt 0:01:57]} 19. h3 {[%emt 0:01:01]} Rd7 {[%emt 0:03:44]} 20. g4 {[%emt 0:00:53]} Rc4 {[%emt 0:05:43]} 21. g5 {[%emt 0:06:04]} Rxd1 {[%emt 0:00:28]} 22. Rxd1 {[%emt 0:02:39]} Nd7 {[%emt 0:02:43]} 23. Rd2 {[%emt 0:01:44]} f5 {[%emt 0:01:05]} 24. gxf6 {[%emt 0:02:30]} exf6 {[%emt 0:00:18]} 25. Nd5 {[%emt 0:00:46]} Bf8 {[%emt 0:07:30]} 26. b3 {[%emt 0:01:22]} Rc8 {[%emt 0:00:18]} 27. Kg2 {[%emt 0:02:30]} Bd6 {[%emt 0:00:23]} 28. c4 {[%emt 0:00:39]} f5 {[%emt 0:00:26]} 29. Kf3 {[%emt 0:02:21]} b5 {[%emt 0:06:49]} 30. cxb5 {[%emt 0:04:46]} axb5 {[%emt 0:00:08]} 31. b4 {[%emt 0:11:29]} Rc4 {[%emt 0:02:45]} 32. a3 {[%emt 0:00:34]} h5 {[%emt 0:13:59]} 33. Ba7 {[%emt 0:08:47]} f4 {[%emt 0:02:23]} 34. Ke2 {[%emt 0:08:58]} e4 {[%emt 0:02:27]} 35. Bg1 {[%emt 0:11:45]} Be5 {[%emt 0:03:42]} 36. Kd1 {[%emt 0:03:53]} e3 {[%emt 0:04:50]} 37. Rd3 {[%emt 0:00:36]} Nf6 {[%emt 0:04:37]} 38. Nxf6 {[%emt 0:04:00]} Bxf6 {[%emt 0:00:11]} 39. Bh2 {[%emt 0:01:16]} Kf5 {[%emt 0:01:12]} 40. Rd5+ {[%emt 0:00:19]} Ke4 {[%emt 0:00:37]} 41. Rxb5 {[%emt 0:30:46]} f3 {[%emt 0:31:54]} 0-1

[Event "106th British-ch Major 2019"]
[Site "Torquay"]
[Date "2019.08.01"]
[Round "6.32"]
[White "Lim, Mark"]
[Black "Ruane, Brendan J"]
[Result "0-1"]
[ECO "B06"]
[WhiteElo "1822"]
[BlackElo "1904"]
[Annotator "NA"]
[PlyCount "77"]
[EventDate "2019.07.27"]
[EventType "swiss"]
[EventCountry "GBR"]
[SourceTitle "playchess.com"]
[Source "ChessBase"]
[SourceQuality "1"]
[TimeControl "40/5400+30:1800+30"]

1. d4 {[%emt 0:36:38]} g6 {[%emt 0:00:56]} 2. Nf3 {[%emt 0:01:35]} Bg7 {[%emt 0:00:09]} 3. e4 {[%emt 0:01:09]} d6 {[%emt 0:00:26]} 4. Nbd2 {[%emt 0:00:24]} a6 {[%emt 0:01:19]} 5. c3 {[%emt 0:00:30]} Nd7 {[%emt 0:02:23]} 6. Be2 {[%emt 0:01:03]} e6 {[%emt 0:00:47]} 7. O-O {[%emt 0:00:51]} Ne7 {[%emt 0:00:17]} 8. Re1 {[%emt 0:00:44]} b6 {[%emt 0:00:17]} 9. b3 {[%emt 0:02:25]} Bb7 {[%emt 0:00:12]} 10. Bb2 {[%emt 0:00:56]} h6 {[%emt 0:00:12]} 11. Bf1 {[%emt 0:02:42]} g5 {[%emt 0:00:51]} 12. Nc4 {[%emt 0:02:40]} Ng6 {[%emt 0:01:34]} 13. Qc2 {[%emt 0:08:40]} g4 {[%emt 0:17:48]} 14. Nfd2 {[%emt 0:01:30]} h5 {[%emt 0:00:12]} 15. Ne3 {[%emt 0:03:05]} Qg5 {[%emt 0:02:06]} 16. a4 {[%emt 0:10:10]} Nf6 {[%emt 0:19:12]} 17. a5 {[%emt 0:04:26]} b5 {[%emt 0:01:47]} 18. c4 {[%emt 0:06:05]} bxc4 {[%emt 0:07:01]} 19. Bxc4 {[%emt 0:01:16]} O-O {[%emt 0:01:17]} 20. d5 {[%emt 0:07:51]} e5 {[%emt 0:02:46]} 21. Bf1 {[%emt 0:01:57]} Rac8 {[%emt 0:03:35]} 22. Nf5 {[%emt 0:01:32]} Nxe4 {[%emt 0:05:57]} 23. Nxg7 {[%emt 0:24:21]} Qxd2 {[%emt 0:00:06]} 24. Qxe4 {[%emt 0:09:15]} Kxg7 {[%emt 0:00:07]} 25. Qe2 {[%emt 0:06:12]} Qxe2 26. Bxe2 {[%emt 0:00:07]} Nf4 {[%emt 0:00:27]} 27. Bc4 {[%emt 0:00:45]} Nxd5 {[%emt 0:00:48]} 28. Rad1 {[%emt 0:00:48]} Nf4 {[%emt 0:01:41]} 29. Rxe5 {[%emt 0:01:09]} dxe5 {[%emt 0:00:21]} 30. Bxe5+ {[%emt 0:00:06]} f6 {[%emt 0:01:32]} 31. Bxf4 {[%emt 0:00:03]} Rcd8 {[%emt 0:01:49]} 32. Ra1 {[%emt 0:00:27]} Rd7 {[%emt 0:01:09]} 33. h3 {[%emt 0:00:36]} gxh3 {[%emt 0:01:12]} 34. gxh3 {[%emt 0:00:17]} h4 {[%emt 0:00:54]} 35. Kf1 {[%emt 0:00:56]} Rfd8 {[%emt 0:02:16]} 36. Ke2 {[%emt 0:00:21]} Re7+ {[%emt 0:01:06]} 37. Be3 {[%emt 0:01:10]} f5 {[%emt 0:06:50]} 38. Rg1+ {[%emt 0:00:53]} Kf6 {[%emt 0:00:03]} 39. Rg5 {[%emt 0:02:29]} 0-1

[Event "106th British-ch Major 2019"]
[Site "Torquay"]
[Date "2019.08.01"]
[Round "6.33"]
[White "Morgan, Jamie"]
[Black "Lovell, William Pm"]
[Result "0-1"]
[ECO "B23"]
[WhiteElo "1894"]
[BlackElo "1777"]
[Annotator "NA"]
[PlyCount "88"]
[EventDate "2019.07.27"]
[EventType "swiss"]
[EventCountry "GBR"]
[SourceTitle "playchess.com"]
[Source "ChessBase"]
[SourceQuality "1"]
[TimeControl "40/5400+30:1800+30"]

1. e4 {[%emt 0:00:00]} c5 {[%emt 0:00:00]} 2. Nc3 {[%emt 0:00:00]} Nc6 {[%emt 0:00:00]} 3. f4 {[%emt 0:00:08]} g6 {[%emt 0:00:00]} 4. Nf3 {[%emt 0:00:21]} Bg7 {[%emt 0:00:00]} 5. Bb5 {[%emt 0:00:45]} Nd4 {[%emt 0:00:38]} 6. O-O {[%emt 0:02:02]} a6 {[%emt 0:00:45]} 7. Bd3 {[%emt 0:02:37]} e6 {[%emt 0:01:26]} 8. b3 {[%emt 0:08:14]} Ne7 {[%emt 0:00:18]} 9. Qe1 {[%emt 0:10:18]} O-O {[%emt 0:02:31]} 10. Rb1 {[%emt 0:01:41]} d5 {[%emt 0:04:14]} 11. e5 {[%emt 0:08:13]} Nec6 {[%emt 0:02:39]} 12. Nxd4 {[%emt 0:03:54]} Nxd4 {[%emt 0:03:56]} 13. Ne2 {[%emt 0:01:13]} Nxe2+ {[%emt 0:03:33]} 14. Qxe2 {[%emt 0:02:55]} f6 {[%emt 0:02:17]} 15. Bb2 {[%emt 0:02:14]} Qc7 {[%emt 0:07:41]} 16. exf6 {[%emt 0:02:13]} Bxf6 {[%emt 0:00:30]} 17. Be5 {[%emt 0:00:30]} Bxe5 {[%emt 0:00:29]} 18. fxe5 {[%emt 0:01:02]} Bd7 {[%emt 0:01:12]} 19. Qe3 {[%emt 0:14:27]} Bb5 {[%emt 0:16:34]} 20. Rbe1 {[%emt 0:08:50]} Bxd3 {[%emt 0:00:44]} 21. Qxd3 {[%emt 0:00:44]} Rxf1+ {[%emt 0:00:41]} 22. Qxf1 {[%emt 0:00:22]} Rf8 {[%emt 0:00:18]} 23. Qe2 {[%emt 0:00:43]} Rf5 {[%emt 0:03:44]} 24. g4 {[%emt 0:01:48]} Rf4 {[%emt 0:01:28]} 25. Rf1 {[%emt 0:02:12]} Re4 {[%emt 0:07:25]} 26. Qf3 {[%emt 0:01:09]} Qg7 {[%emt 0:00:41]} 27. Qf6 {[%emt 0:11:24]} Qxf6 {[%emt 0:00:52]} 28. Rxf6 {[%emt 0:00:12]} Rxe5 {[%emt 0:00:12]} 29. Kf2 {[%emt 0:00:48]} Kg7 {[%emt 0:00:46]} 30. Rf3 {[%emt 0:00:51]} g5 {[%emt 0:06:46]} 31. c3 {[%emt 0:04:31]} Re4 {[%emt 0:01:28]} 32. h3 {[%emt 0:00:56]} e5 {[%emt 0:12:59]} 33. Kg3 {[%emt 0:01:00]} Rf4 {[%emt 0:00:56]} 34. Rd3 {[%emt 0:01:12]} d4 {[%emt 0:00:28]} 35. cxd4 {[%emt 0:00:09]} exd4 {[%emt 0:02:41]} 36. h4 {[%emt 0:01:49]} h6 {[%emt 0:02:04]} 37. hxg5 {[%emt 0:02:02]} hxg5 {[%emt 0:00:07]} 38. Rf3 {[%emt 0:02:06]} Rxf3+ {[%emt 0:04:20]} 39. Kxf3 {[%emt 0:00:02]} Kf6 {[%emt 0:00:10]} 40. Ke4 {[%emt 0:00:07]} Ke6 {[%emt 0:00:19]} 41. b4 {[%emt 0:30:26]} b6 {[%emt 0:14:53]} 42. bxc5 {[%emt 0:00:00]} bxc5 {[%emt 0:00:11]} 43. d3 {[%emt 0:00:00]} a5 {[%emt 0:02:31]} 44. a4 {[%emt 0:00:00]} Kd6 {[%emt 0:00:16]} 0-1

[Event "106th British-ch Major 2019"]
[Site "Torquay"]
[Date "2019.08.01"]
[Round "6.34"]
[White "May, Paul"]
[Black "Forster, James Connor C"]
[Result "1/2-1/2"]
[ECO "D28"]
[WhiteElo "1832"]
[BlackElo "1831"]
[Annotator "NA"]
[PlyCount "47"]
[EventDate "2019.07.27"]
[EventType "swiss"]
[EventCountry "GBR"]
[SourceTitle "playchess.com"]
[Source "ChessBase"]
[SourceQuality "1"]
[TimeControl "40/5400+30:1800+30"]

1. d4 {[%emt 0:00:00]} d5 {[%emt 0:00:00]} 2. c4 {[%emt 0:00:00]} dxc4 {[%emt 0:00:16]} 3. e3 {[%emt 0:00:09]} Nf6 {[%emt 0:00:36]} 4. Bxc4 {[%emt 0:00:17]} e6 {[%emt 0:00:24]} 5. Nf3 {[%emt 0:00:33]} a6 {[%emt 0:00:38]} 6. O-O {[%emt 0:00:38]} b5 {[%emt 0:00:36]} 7. Bd3 {[%emt 0:01:36]} Bb7 {[%emt 0:01:05]} 8. a4 {[%emt 0:01:26]} b4 {[%emt 0:02:15]} 9. Qe2 {[%emt 0:01:26]} c5 {[%emt 0:03:53]} 10. dxc5 {[%emt 0:02:08]} Bxc5 {[%emt 0:02:40]} 11. Rd1 {[%emt 0:00:57]} Qe7 {[%emt 0:02:19]} 12. b3 {[%emt 0:03:05]} O-O {[%emt 0:02:43]} 13. Nbd2 {[%emt 0:04:14]} Nbd7 {[%emt 0:05:49]} 14. Bb2 {[%emt 0:02:01]} Rfd8 {[%emt 0:07:50]} 15. Ng5 {[%emt 0:16:23]} Bb6 {[%emt 0:13:19]} 16. Rac1 {[%emt 0:26:11]} h6 {[%emt 0:05:43]} 17. Nge4 {[%emt 0:03:05]} a5 {[%emt 0:09:09]} 18. Ng3 {[%emt 0:16:21]} Nc5 {[%emt 0:10:33]} 19. Bxf6 {[%emt 0:01:38]} Qxf6 {[%emt 0:00:33]} 20. Nde4 {[%emt 0:01:30]} Nxe4 {[%emt 0:01:42]} 21. Bxe4 {[%emt 0:01:02]} Bxe4 {[%emt 0:01:40]} 22. Nxe4 {[%emt 0:00:08]} Qe5 {[%emt 0:02:30]} 23. Rxd8+ {[%emt 0:03:00]} Rxd8 {[%emt 0:00:51]} 24. Qc4 {[%emt 0:01:00]} 1/2-1/2

[Event "106th British-ch Major 2019"]
[Site "Torquay"]
[Date "2019.08.01"]
[Round "6.35"]
[White "Renshaw, Lucas"]
[Black "Hussain, Adam"]
[Result "0-1"]
[ECO "C18"]
[WhiteElo "1596"]
[BlackElo "1515"]
[Annotator "NA"]
[PlyCount "114"]
[EventDate "2019.07.27"]
[EventType "swiss"]
[EventCountry "GBR"]
[SourceTitle "playchess.com"]
[Source "ChessBase"]
[SourceQuality "1"]
[TimeControl "40/5400+30:1800+30"]

1. e4 {[%emt 0:05:35]} e6 {[%emt 0:00:00]} 2. d4 {[%emt 0:00:13]} d5 {[%emt 0:00:00]} 3. Nc3 {[%emt 0:00:09]} Bb4 {[%emt 0:00:08]} 4. e5 {[%emt 0:00:30]} Ne7 {[%emt 0:00:30]} 5. a3 {[%emt 0:00:30]} Bxc3+ {[%emt 0:00:30]} 6. bxc3 {[%emt 0:00:30]} c5 {[%emt 0:00:30]} 7. f4 {[%emt 0:00:30]} Qc7 {[%emt 0:00:30]} 8. Nf3 {[%emt 0:00:30]} b6 {[%emt 0:00:30]} 9. a4 {[%emt 0:00:30]} Ba6 {[%emt 0:00:30]} 10. Bd3 {[%emt 0:00:30]} Bxd3 {[%emt 0:00:30]} 11. Qxd3 {[%emt 0:00:30]} Nd7 {[%emt 0:00:30]} 12. O-O {[%emt 0:00:30]} Rc8 {[%emt 0:00:30]} 13. Ba3 {[%emt 0:00:30]} Nb8 {[%emt 0:00:30]} 14. c4 {[%emt 0:00:30]} Rd8 {[%emt 0:00:30]} 15. cxd5 {[%emt 0:00:30]} Rxd5 {[%emt 0:00:30]} 16. Qb5+ {[%emt 0:00:30]} Rd7 {[%emt 0:00:30]} 17. dxc5 {[%emt 0:00:30]} bxc5 {[%emt 0:00:30]} 18. Qxc5 {[%emt 0:00:30]} Qxc5+ {[%emt 0:00:30]} 19. Bxc5 {[%emt 0:00:30]} Na6 {[%emt 0:00:30]} 20. Bd6 {[%emt 0:00:30]} Nf5 {[%emt 0:00:30]} 21. Ba3 {[%emt 0:00:30]} Ne3 {[%emt 0:00:30]} 22. Rf2 {[%emt 0:00:30]} Nc4 {[%emt 0:22:23]} 23. Bc1 {[%emt 1:07:45]} Ke7 {[%emt 0:00:24]} 24. Nd2 {[%emt 0:01:56]} Rc8 {[%emt 0:00:30]} 25. Nxc4 {[%emt 0:00:30]} Rxc4 {[%emt 0:01:58]} 26. Ba3+ {[%emt 0:01:26]} Ke8 {[%emt 0:00:29]} 27. Bd6 Nb4 {[%emt 0:00:30]} 28. f5 exf5 {[%emt 0:00:30]} 29. c3 {[%emt 0:02:53]} Nc6 {[%emt 0:00:30]} 30. Rxf5 {[%emt 0:00:30]} Ne7 {[%emt 0:00:30]} 31. Rf3 {[%emt 0:00:30]} g6 {[%emt 0:00:30]} 32. Re1 {[%emt 0:00:30]} Nf5 {[%emt 0:00:30]} 33. Bb4 {[%emt 0:00:30]} Rd5 {[%emt 0:00:30]} 34. a5 {[%emt 0:00:30]} Kd7 {[%emt 0:00:30]} 35. h3 {[%emt 0:00:30]} h5 {[%emt 0:00:30]} 36. Kf2 {[%emt 0:00:30]} Ke6 {[%emt 0:00:30]} 37. g3 {[%emt 0:00:30]} a6 {[%emt 0:00:30]} 38. Rf4 {[%emt 0:00:30]} Rxf4+ {[%emt 0:00:30]} 39. gxf4 {[%emt 0:00:30]} Rd3 {[%emt 0:00:30]} 40. Rh1 {[%emt 0:00:30]} Ne7 {[%emt 0:00:30]} 41. Ke2 {[%emt 0:30:30]} Rg3 {[%emt 0:30:30]} 42. c4 {[%emt 0:00:30]} Nc6 {[%emt 0:00:30]} 43. Bc5 {[%emt 0:00:30]} Kf5 {[%emt 0:00:30]} 44. Be3 {[%emt 0:00:30]} Ke4 {[%emt 0:00:30]} 45. Bd2 {[%emt 0:00:30]} Rg2+ {[%emt 0:00:30]} 46. Kd1 {[%emt 0:00:30]} Kd3 {[%emt 0:00:30]} 47. Bc1 {[%emt 0:00:30]} Nxa5 {[%emt 0:00:30]} 48. c5 {[%emt 0:00:30]} Nb3 {[%emt 0:00:30]} 49. h4 {[%emt 0:00:30]} Nxc5 {[%emt 0:00:30]} 50. Rh3+ {[%emt 0:00:30]} Ke4 {[%emt 0:00:30]} 51. Rc3 {[%emt 0:00:30]} Nd3 {[%emt 0:00:30]} 52. Bd2 {[%emt 0:00:30]} Rg4 {[%emt 0:00:30]} 53. Kc2 {[%emt 0:00:30]} Nxf4 {[%emt 0:00:30]} 54. Re3+ {[%emt 0:00:30]} Kf5 {[%emt 0:00:30]} 55. Be1 {[%emt 0:00:30]} Ng2 {[%emt 0:00:30]} 56. Rf3+ {[%emt 0:00:30]} Rf4 {[%emt 0:00:30]} 57. Rg3 {[%emt 0:00:30]} Nxe1+ {[%emt 0:00:30]} 0-1

[Event "106th British-ch Major 2019"]
[Site "Torquay"]
[Date "2019.08.02"]
[Round "7.1"]
[White "Taylor, Adam A"]
[Black "Clarke, Brandon Gi"]
[Result "1/2-1/2"]
[ECO "E68"]
[WhiteElo "2168"]
[BlackElo "2433"]
[Annotator "NA"]
[PlyCount "76"]
[EventDate "2019.07.27"]
[EventType "swiss"]
[EventCountry "GBR"]
[SourceTitle "playchess.com"]
[Source "ChessBase"]
[SourceQuality "1"]
[TimeControl "40/5400+30:1800+30"]

1. Nf3 {[%emt 0:00:00]} Nf6 {[%emt 0:00:00]} 2. g3 {[%emt 0:00:00]} g6 {[%emt 0:00:00]} 3. Bg2 {[%emt 0:00:03]} Bg7 {[%emt 0:00:00]} 4. O-O {[%emt 0:00:06]} O-O {[%emt 0:00:00]} 5. d4 {[%emt 0:00:04]} d6 {[%emt 0:00:02]} 6. c4 {[%emt 0:00:14]} Nbd7 {[%emt 0:00:24]} 7. Nc3 {[%emt 0:00:06]} e5 {[%emt 0:00:07]} 8. e4 {[%emt 0:00:04]} exd4 {[%emt 0:01:25]} 9. Nxd4 {[%emt 0:00:09]} Nc5 {[%emt 0:00:10]} 10. Re1 {[%emt 0:02:36]} Re8 {[%emt 0:01:16]} 11. h3 {[%emt 0:01:01]} Bd7 {[%emt 0:01:25]} 12. Nb3 {[%emt 0:25:12]} Na4 {[%emt 0:00:01]} 13. Nxa4 {[%emt 0:00:51]} Bxa4 {[%emt 0:00:00]} 14. Bd2 {[%emt 0:10:32]} Nd7 {[%emt 0:14:43]} 15. Qc2 {[%emt 0:00:09]} Qe7 {[%emt 0:17:10]} 16. Bc3 {[%emt 0:02:01]} Qf8 {[%emt 0:23:17]} 17. Rad1 {[%emt 0:09:38]} Re7 {[%emt 0:08:47]} 18. Bd4 {[%emt 0:38:26]} Rae8 {[%emt 0:02:20]} 19. Re3 {[%emt 0:00:07]} h5 {[%emt 0:02:06]} 20. Qc3 {[%emt 0:01:25]} h4 {[%emt 0:01:07]} 21. gxh4 {[%emt 0:00:03]} Ne5 {[%emt 0:05:22]} 22. f4 {[%emt 0:03:54]} Nc6 {[%emt 0:01:41]} 23. Bxg7 {[%emt 0:00:24]} Qxg7 {[%emt 0:00:01]} 24. h5 {[%emt 0:00:26]} Qxc3 {[%emt 0:01:27]} 25. Rxc3 {[%emt 0:00:03]} Nb4 {[%emt 0:04:04]} 26. hxg6 {[%emt 0:02:22]} fxg6 {[%emt 0:00:01]} 27. Rg3 {[%emt 0:00:06]} Kh7 {[%emt 0:00:13]} 28. h4 {[%emt 0:01:02]} Rf8 {[%emt 0:07:26]} 29. Rf1 {[%emt 0:00:06]} b5 {[%emt 0:00:01]} 30. Nd4 {[%emt 0:00:44]} bxc4 {[%emt 0:00:20]} 31. f5 {[%emt 0:00:03]} Rf6 {[%emt 0:03:04]} 32. Rc1 {[%emt 0:03:08]} Nd3 {[%emt 0:06:02]} 33. Rxc4 {[%emt 0:00:11]} Nxb2 {[%emt 0:00:01]} 34. Rb4 {[%emt 0:01:00]} c5 {[%emt 0:00:02]} 35. Rxb2 {[%emt 0:00:03]} cxd4 {[%emt 0:00:03]} 36. Rb4 {[%emt 0:00:34]} Be8 {[%emt 0:01:08]} 37. fxg6+ {[%emt 0:00:23]} Bxg6 {[%emt 0:00:12]} 38. Rxd4 {[%emt 0:00:06]} Rf4 {[%emt 0:01:06]} 1/2-1/2

[Event "106th British-ch Major 2019"]
[Site "Torquay"]
[Date "2019.08.02"]
[Round "7.2"]
[White "Payne, Matthew J"]
[Black "Cleary, Mark"]
[Result "1/2-1/2"]
[ECO "C45"]
[WhiteElo "2168"]
[BlackElo "2023"]
[Annotator "NA"]
[PlyCount "57"]
[EventDate "2019.07.27"]
[EventType "swiss"]
[EventCountry "GBR"]
[SourceTitle "playchess.com"]
[Source "ChessBase"]
[SourceQuality "1"]
[TimeControl "40/5400+30:1800+30"]

1. e4 {[%emt 0:00:00]} e5 {[%emt 0:00:00]} 2. Nf3 {[%emt 0:00:00]} Nc6 {[%emt 0:00:00]} 3. d4 {[%emt 0:00:00]} exd4 {[%emt 0:00:02]} 4. Nxd4 {[%emt 0:00:03]} Nf6 {[%emt 0:00:29]} 5. Nxc6 {[%emt 0:00:09]} bxc6 {[%emt 0:00:08]} 6. e5 {[%emt 0:00:09]} Qe7 {[%emt 0:00:25]} 7. Qe2 {[%emt 0:00:09]} Nd5 {[%emt 0:00:11]} 8. c4 {[%emt 0:00:09]} Nb6 {[%emt 0:00:18]} 9. Nc3 {[%emt 0:00:22]} Qe6 {[%emt 0:00:39]} 10. Qe4 {[%emt 0:00:43]} d5 {[%emt 0:01:10]} 11. exd6 {[%emt 0:06:31]} Qxe4+ {[%emt 0:03:30]} 12. Nxe4 {[%emt 0:00:10]} cxd6 {[%emt 0:00:10]} 13. Bf4 {[%emt 0:13:45]} d5 {[%emt 0:04:40]} 14. cxd5 {[%emt 0:09:10]} Nxd5 {[%emt 0:05:03]} 15. Bd2 {[%emt 0:04:44]} Bf5 {[%emt 0:03:54]} 16. Bd3 {[%emt 0:00:42]} Bxe4 {[%emt 0:06:18]} 17. Bxe4 {[%emt 0:00:10]} Bb4 {[%emt 0:00:10]} 18. O-O-O {[%emt 0:20:51]} Bxd2+ {[%emt 0:00:13]} 19. Rxd2 {[%emt 0:00:05]} O-O-O {[%emt 0:12:45]} 20. Rhd1 {[%emt 0:06:55]} Ne7 {[%emt 0:09:56]} 21. Rxd8+ {[%emt 0:02:23]} Rxd8 {[%emt 0:00:07]} 22. Rxd8+ {[%emt 0:00:03]} Kxd8 {[%emt 0:00:08]} 23. Kd2 {[%emt 0:06:00]} Kd7 {[%emt 0:03:00]} 24. Kc3 {[%emt 0:02:54]} f5 {[%emt 0:04:51]} 25. Bf3 {[%emt 0:03:08]} Ng6 {[%emt 0:06:47]} 26. Kd4 {[%emt 0:07:20]} Kd6 {[%emt 0:00:28]} 27. Be2 {[%emt 0:02:53]} Nf4 {[%emt 0:02:06]} 28. Bf1 {[%emt 0:01:32]} Nd5 {[%emt 0:03:55]} 29. g3 {[%emt 0:02:17] Ke5+ Ke4+} 1/2-1/2

[Event "106th British-ch Major 2019"]
[Site "Torquay"]
[Date "2019.08.02"]
[Round "7.3"]
[White "Gardiner, Eric D"]
[Black "Graham, David B"]
[Result "0-1"]
[ECO "A45"]
[WhiteElo "1957"]
[BlackElo "2162"]
[Annotator "NA"]
[PlyCount "110"]
[EventDate "2019.07.27"]
[EventType "swiss"]
[EventCountry "GBR"]
[SourceTitle "playchess.com"]
[Source "ChessBase"]
[SourceQuality "1"]
[TimeControl "40/5400+30:1800+30"]

1. d4 {[%emt 0:00:00]} Nf6 {[%emt 0:00:00]} 2. Bg5 {[%emt 0:00:00]} e6 {[%emt 0:00:00]} 3. e4 {[%emt 0:00:00]} h6 {[%emt 0:00:00]} 4. Bxf6 {[%emt 0:00:02]} Qxf6 {[%emt 0:00:00]} 5. c3 {[%emt 0:00:14]} d5 {[%emt 0:00:59]} 6. Nd2 {[%emt 0:00:43]} c5 {[%emt 0:00:54]} 7. Ngf3 {[%emt 0:00:19]} cxd4 {[%emt 0:06:51]} 8. Nxd4 {[%emt 0:00:26]} Bc5 {[%emt 0:01:52]} 9. N2b3 {[%emt 0:02:28]} Bxd4 {[%emt 0:01:04]} 10. Nxd4 {[%emt 0:00:30]} O-O {[%emt 0:05:08]} 11. exd5 {[%emt 0:04:54]} exd5 {[%emt 0:02:10]} 12. Be2 {[%emt 0:00:49]} Nc6 {[%emt 0:00:51]} 13. O-O {[%emt 0:01:57]} Be6 {[%emt 0:03:51]} 14. Qa4 {[%emt 0:06:36]} Nxd4 {[%emt 0:02:54]} 15. cxd4 {[%emt 0:06:17]} Rfc8 {[%emt 0:02:32]} 16. Rac1 {[%emt 0:10:39]} Qf4 {[%emt 0:08:51]} 17. Rc3 {[%emt 0:12:32]} Qd2 {[%emt 0:14:24]} 18. Qb5 {[%emt 0:04:10]} a6 {[%emt 0:03:45]} 19. Qd3 {[%emt 0:08:10]} Qxb2 {[%emt 0:00:36]} 20. Rb3 {[%emt 0:00:45]} Qxa2 {[%emt 0:00:24]} 21. Rxb7 {[%emt 0:00:27]} Qc2 {[%emt 0:06:15]} 22. Qxc2 {[%emt 0:04:07]} Rxc2 {[%emt 0:00:04]} 23. Bd3 {[%emt 0:00:15]} Rc3 {[%emt 0:07:33]} 24. Rd1 {[%emt 0:02:34]} a5 {[%emt 0:01:09]} 25. f4 {[%emt 0:01:33]} Bg4 {[%emt 0:07:22]} 26. Rd2 {[%emt 0:00:09]} Rc1+ {[%emt 0:00:17]} 27. Kf2 {[%emt 0:00:36]} Rd1 {[%emt 0:00:40]} 28. Rxd1 {[%emt 0:01:11]} Bxd1 {[%emt 0:00:04]} 29. Ke1 {[%emt 0:00:23]} Bh5 {[%emt 0:10:24]} 30. Kd2 {[%emt 0:03:51]} a4 {[%emt 0:01:55]} 31. Kc1 {[%emt 0:00:44]} Kf8 {[%emt 0:05:40]} 32. Kb2 {[%emt 0:00:38]} Bd1 {[%emt 0:00:33]} 33. Rb5 {[%emt 0:08:04]} Bb3 {[%emt 0:00:40]} 34. Ka3 {[%emt 0:04:24]} Rc8 {[%emt 0:01:00]} 35. Rc5 {[%emt 0:04:12]} Ra8 {[%emt 0:03:26]} 36. Bb5 {[%emt 0:03:41]} Ke7 {[%emt 0:02:00]} 37. Bc6 {[%emt 0:02:37]} Ra6 {[%emt 0:00:30]} 38. Bxd5 {[%emt 0:00:40]} Bxd5 {[%emt 0:00:43]} 39. Rxd5 {[%emt 0:00:06]} Rd6 {[%emt 0:00:14]} 40. Re5+ {[%emt 0:01:52]} Kf6 {[%emt 0:00:31]} 41. d5 {[%emt 0:30:35]} g5 {[%emt 0:09:46]} 42. g3 {[%emt 0:00:00]} gxf4 {[%emt 0:02:19]} 43. gxf4 {[%emt 0:00:00]} Kg6 {[%emt 0:01:49]} 44. h4 {[%emt 0:00:00]} f6 {[%emt 0:01:11]} 45. h5+ {[%emt 0:00:00]} Kf7 {[%emt 0:00:06]} 46. Rf5 {[%emt 0:00:00]} Ra6 {[%emt 0:00:37]} 47. d6 {[%emt 0:00:00]} Rxd6 {[%emt 0:00:37]} 48. Rb5 {[%emt 0:00:00]} Rd4 {[%emt 0:06:42]} 49. f5 {[%emt 0:00:00]} Rh4 {[%emt 0:00:14]} 50. Rb7+ {[%emt 0:00:00]} Kf8 {[%emt 0:01:50]} 51. Rb8+ {[%emt 0:00:00]} Ke7 {[%emt 0:00:10]} 52. Rb7+ {[%emt 0:00:00]} Kd6 {[%emt 0:00:34]} 53. Rb6+ {[%emt 0:00:00]} Ke5 {[%emt 0:00:52]} 54. Rb5+ {[%emt 0:00:00]} Kf4 {[%emt 0:00:25]} 55. Kxa4 {[%emt 0:00:00]} Rxh5 {[%emt 0:00:15]} 0-1